bitfinex/quotes_SOLUSD_20250708
["timestamp","ask_amount","ask_price","bid_price","bid_amount"]
[1751946585528,0.03,148.91,148.9,127.19400617]
[1751946588018,0.03,148.92,148.91,105.91964886]
[1751946588219,0.03,148.92,148.91,108.83318945]
[1751946589824,0.03,148.92,148.91,115.54865516]
[1751946596722,0.03,148.92,148.91,105.91964886]
[1751946596922,0.03,148.92,148.9,87.33]
[1751946597127,0.03,148.92,148.9,90.24354059]
[1751946597329,0.03,148.92,148.9,93.62354059]
[1751946597956,0.03,148.92,148.91,2.91354059]
[1751946600033,0.03,148.92,148.9,6.35354059]
[1751946600729,0.03,148.92,148.9,2.97354059]
[1751946600934,0.03,148.92,148.9,3.44]
[1751946601135,0.03,148.92,148.9,0.06]
[1751946602651,0.03,148.92,148.91,24.94318945]
[1751946604535,0.03,148.92,148.91,31.65865516]
[1751946607662,0.03,148.92,148.91,118.92865516]
[1751946611951,0.03,148.92,148.91,112.27318945]
[1751946613448,0.03,148.92,148.91,93.62354059]
[1751946614068,0.03,148.92,148.91,90.24354059]
[1751946614237,0.03,148.92,148.91,93.62354059]
[1751946616978,0.03,148.92,148.91,90.24354059]
[1751946617467,0.03,148.92,148.91,93.62354059]
[1751946617958,0.03,148.92,148.91,90.71]
[1751946618158,0.03,148.92,148.91,93.62354059]
[1751946619271,0.03,148.92,148.91,6.35354059]
[1751946621370,0.03,148.92,148.91,2.97354059]
[1751946621573,0.03,148.92,148.91,6.35354059]
[1751946621752,0.03,148.92,148.91,13.0690063]
[1751946622070,0.03,148.92,148.91,31.71865516]
[1751946623765,0.03,148.92,148.91,118.98865516]
[1751946633161,0.03,148.92,148.91,112.27318945]
[1751946635157,0.03,148.92,148.91,118.98865516]
[1751946637480,0.03,148.92,148.91,119.13081673]
[1751946638554,0.03,148.92,148.91,126.03081673]
[1751946639278,0.03,148.97,148.92,18.64964886]
[1751946639580,0.03,148.97,148.96,2.91354059]
[1751946639778,0.03,148.97,148.96,93.56354059]
[1751946643880,0.03,148.97,148.96,90.65]
[1751946644180,0.03,148.97,148.96,93.56354059]
[1751946646883,0.03,148.97,148.96,90.65]
[1751946649778,7.57198929,148.97,148.96,90.65]
[1751946649990,10.48552988,148.97,148.96,90.65]
[1751946650286,2.94354059,148.97,148.96,90.65]
[1751946650490,10.48552988,148.97,148.96,90.65]
[1751946650783,0.03,148.97,148.96,90.65]
[1751946650980,7.57198929,148.97,148.96,90.65]
[1751946651669,0.03,148.97,148.96,93.56354059]
[1751946655384,0.03,148.97,148.96,90.65]
[1751946656593,7.57125437,148.97,148.96,90.65]
[1751946659292,0.03,148.97,148.96,90.65]
[1751946659492,0.03,148.97,148.96,95.19967432]
[1751946663498,0.03,148.97,148.96,90.65]
[1751946664385,0.03,148.97,148.96,95.19967432]
[1751946665304,0.03,148.97,148.96,90.65]
[1751946665593,0.03,148.97,148.96,95.19967432]
[1751946671506,0.03,148.97,148.96,90.65]
[1751946673505,7.57831234,148.97,148.96,3.38]
[1751946673888,0.03,148.97,148.96,3.38]
[1751946680214,7.58097408,148.97,148.96,3.38]
[1751946683911,7.58097408,148.97,148.95,90.65]
[1751946684110,0.03,148.97,148.95,90.65]
[1751946686613,0.03,148.97,148.95,93.56133889]
[1751946687116,0.03,148.97,148.95,90.65]
[1751946687306,0.03,148.97,148.95,93.56133889]
[1751946690120,0.03,148.97,148.95,87.27]
[1751946690325,0.03,148.97,148.96,3.38]
[1751946690512,7.58400253,148.97,148.96,3.38]
[1751946691397,0.03,148.97,148.96,6.29133889]
[1751946693610,0.03,148.97,148.96,3.38]
[1751946696204,0.03,148.97,148.96,90.65]
[1751946703309,10.49604079,148.97,148.96,90.65]
[1751946703517,7.5847019,148.97,148.96,90.65]
[1751946704911,0.03,148.97,148.96,93.56133889]
[1751946706521,0.03,148.97,148.96,90.65]
[1751946708415,7.58462939,148.97,148.96,90.65]
[1751946708621,0.03,148.97,148.96,93.56133889]
[1751946709742,0.03,148.97,148.96,24.94098775]
[1751946710124,0.03,148.97,148.96,130.56955491]
[1751946720152,0.2,149.06,149.02,2.91133889]
[1751946720325,7.53219811,149.05,149.03,6.29133889]
[1751946720526,0.2,149.06,149.05,18.64964886]
[1751946720747,0.2,149.06,149.05,112.21098775]
[1751946722153,0.2,149.06,149.05,109.29964886]
[1751946722550,0.2,149.06,149.05,118.92014575]
[1751946722945,0.2,149.06,149.05,120.54855247]
[1751946727454,0.2,149.07,149.06,105.71964886]
[1751946727662,0.2,149.07,149.06,110.40155604]
[1751946729953,0.2,149.07,149.06,117.11026394]
[1751946731862,0.2,149.07,149.06,263.91026394]
[1751946734735,0.2,149.07,149.06,259.37051833]
[1751946735042,0.03,149.1,149.08,18.64964886]
[1751946735247,0.03,149.1,149.09,7.93974561]
[1751946738259,0.03,149.1,149.09,3.4]
[1751946738561,0.03,149.1,149.09,7.93974561]
[1751946739173,0.03,149.1,149.09,3.4]
[1751946739376,0.03,149.1,149.09,7.93974561]
[1751946740662,0.03,149.1,149.09,94.80974561]
[1751946744864,0.03,149.1,149.09,93.1751516]
[1751946745852,0.03,149.1,149.09,99.88250957]
[1751946746163,0.03,149.1,149.09,93.1751516]
[1751946747653,0.03,149.1,149.09,111.82480046]
[1751946748869,0.03,149.1,149.09,111.80480046]
[1751946756382,0.03,149.1,149.09,108.89964886]
[1751946756676,0.03,149.1,149.09,111.80480046]
[1751946774607,0.03,149.1,149.09,118.51215843]
[1751946776288,0.03,149.1,149.09,108.89964886]
[1751946776484,0.03,149.1,149.09,111.80480046]
[1751946776685,0.03,149.1,149.09,118.51215843]
[1751946784085,0.03,149.1,149.09,108.89964886]
[1751946784293,0.03,149.1,149.09,111.80480046]
[1751946787095,0.03,149.1,149.09,108.89964886]
[1751946788609,7.58201053,149.1,149.07,86.87]
[1751946788785,7.55201053,149.09,149.08,22.02964886]
[1751946788989,0.03,149.1,149.08,22.02964886]
[1751946790519,0.03,149.1,149.08,24.93480046]
[1751946794028,0.03,149.1,149.08,111.80480046]
[1751946795323,0.03,149.1,149.08,108.42480046]
[1751946795628,0.03,149.1,149.09,22.02964886]
[1751946799825,0.03,149.1,149.09,24.93480046]
[1751946802017,0.03,149.1,149.09,31.64215843]
[1751946802810,0.03,149.1,149.09,118.51215843]
[1751946804714,0.03,149.1,149.09,115.60700683]
[1751946804910,0.03,149.1,149.09,111.80480046]
[1751946805306,0.03,149.1,149.09,108.89964886]
[1751946806229,0.03,149.1,149.09,3.38]
[1751946806429,7.57808175,149.1,149.09,3.38]
[1751946807732,7.57808175,149.1,149.08,3.38]
[1751946808031,0.03,149.1,149.08,3.38]
[1751946811214,2.9351516,149.1,149.08,3.38]
[1751946812123,2.9351516,149.1,149.07,22.02964886]
[1751946813224,2.9351516,149.1,149.07,18.64964886]
[1751946813426,2.9351516,149.1,149.07,22.02964886]
[1751946814353,2.9351516,149.1,149.07,18.64964886]
[1751946814544,2.9351516,149.1,149.07,22.02964886]
[1751946817049,2.9351516,149.1,149.07,18.64964886]
[1751946817251,2.9351516,149.1,149.07,22.02964886]
[1751946820536,2.9351516,149.1,149.07,18.64964886]
[1751946820851,2.9351516,149.1,149.07,22.02964886]
[1751946827853,2.9351516,149.1,149.07,3.38]
[1751946828357,2.9051516,149.09,149.07,3.38]
[1751946828652,2.9051516,149.08,149.06,86.93]
[1751946829155,2.9051516,149.08,149.06,90.31]
[1751946829652,28.9051516,149.09,149.06,90.31]
[1751946832249,28.9051516,149.09,149.06,3.44]
[1751946833363,2.9051516,149.08,149.06,3.44]
[1751946834445,10.44345036,149.08,149.06,3.44]
[1751946835357,2.9051516,149.08,149.06,3.44]
[1751946845276,28.9051516,149.09,149.06,3.44]
[1751946849777,28.9351516,149.09,149.06,3.44]
[1751946850173,26.03,149.09,149.07,18.64964886]
[1751946850377,0.03,149.09,149.07,18.64964886]
[1751946852069,7.56975149,149.09,149.07,18.64964886]
[1751946852869,0.03,149.09,149.07,18.64964886]
[1751946854271,2.9351516,149.09,149.07,18.64964886]
[1751946860798,2.9351516,149.09,149.06,90.31]
[1751946860985,7.542792,149.08,149.06,90.31]
[1751946861296,2.9351516,149.09,149.06,90.31]
[1751946861489,7.54292562,149.08,149.06,90.31]
[1751946861688,2.9351516,149.09,149.06,90.31]
[1751946861872,7.54292562,149.08,149.06,3.44]
[1751946862189,2.9351516,149.09,149.06,3.44]
[1751946862386,7.54295399,149.08,149.06,3.44]
[1751946862590,2.9351516,149.09,149.06,3.44]
[1751946862802,7.54289287,149.08,149.06,3.44]
[1751946863099,2.9351516,149.09,149.06,3.44]
[1751946863277,7.5429323,149.08,149.06,3.44]
[1751946863470,2.9351516,149.09,149.06,3.44]
[1751946863769,7.54288133,149.08,149.06,3.44]
[1751946864100,2.9351516,149.09,149.06,3.44]
[1751946864400,7.54292999,149.08,149.06,3.44]
[1751946864600,2.9351516,149.09,149.06,3.44]
[1751946864766,7.54288805,149.08,149.06,3.44]
[1751946864967,2.9351516,149.09,149.06,3.44]
[1751946865185,7.54288902,149.08,149.06,3.44]
[1751946865389,2.9351516,149.09,149.06,3.44]
[1751946865578,7.54314478,149.08,149.06,3.44]
[1751946865784,2.9351516,149.09,149.06,3.44]
[1751946866092,7.54314382,149.08,149.06,3.44]
[1751946866270,2.9351516,149.09,149.06,3.44]
[1751946869489,0.03,149.09,149.06,3.44]
[1751946872299,2.9351516,149.09,149.06,3.44]
[1751946872487,7.54925264,149.08,149.06,3.44]
[1751946872796,2.9351516,149.09,149.06,3.44]
[1751946872978,7.54925264,149.08,149.06,3.44]
[1751946873179,2.9351516,149.09,149.06,3.44]
[1751946873385,7.54943056,149.08,149.06,3.44]
[1751946873595,2.9351516,149.09,149.06,3.44]
[1751946873897,7.55042276,149.08,149.06,3.44]
[1751946874076,0.03,149.09,149.06,3.44]
[1751946874276,7.5504421,149.08,149.06,3.44]
[1751946874579,2.9351516,149.09,149.06,3.44]
[1751946874784,7.55036933,149.08,149.06,3.44]
[1751946874986,2.9351516,149.09,149.06,3.44]
[1751946875298,7.55036933,149.08,149.06,3.44]
[1751946875478,2.9351516,149.09,149.06,3.44]
[1751946875678,7.55022251,149.08,149.06,3.44]
[1751946875874,2.9351516,149.09,149.06,3.44]
[1751946876093,7.5503202,149.08,149.06,3.44]
[1751946876280,2.9351516,149.09,149.06,3.44]
[1751946876487,7.55027152,149.08,149.06,3.44]
[1751946876798,2.9351516,149.09,149.06,3.44]
[1751946876997,7.55027249,149.08,149.06,3.44]
[1751946877295,2.9351516,149.09,149.06,3.44]
[1751946877530,7.55034466,149.08,149.06,3.44]
[1751946877701,2.9351516,149.09,149.06,3.44]
[1751946877890,7.55034466,149.08,149.06,3.44]
[1751946878187,2.9351516,149.09,149.06,3.44]
[1751946878389,7.55037599,149.08,149.06,3.44]
[1751946878595,2.9351516,149.09,149.06,3.44]
[1751946878772,7.55043393,149.08,149.06,3.44]
[1751946879094,2.9351516,149.09,149.06,3.44]
[1751946879287,7.55046765,149.08,149.06,3.44]
[1751946879491,2.9351516,149.09,149.06,3.44]
[1751946879801,7.55055662,149.08,149.06,3.44]
[1751946879991,2.9351516,149.09,149.06,3.44]
[1751946880192,7.55055758,149.08,149.06,3.44]
[1751946880513,2.9351516,149.09,149.06,18.70964886]
[1751946880677,7.55055786,149.08,149.06,18.70964886]
[1751946880878,2.9351516,149.09,149.06,18.70964886]
[1751946881079,7.55055786,149.08,149.06,18.70964886]
[1751946881382,7.55074971,149.07,149.06,18.70964886]
[1751946881601,2.9351516,149.09,149.06,18.70964886]
[1751946881791,7.55055528,149.08,149.06,18.70964886]
[1751946881995,2.9351516,149.09,149.06,18.70964886]
[1751946882187,7.55055528,149.08,149.06,18.70964886]
[1751946882389,2.9351516,149.09,149.06,18.70964886]
[1751946882689,7.55055271,149.08,149.06,18.70964886]
[1751946882879,2.9351516,149.09,149.06,18.70964886]
[1751946883096,7.55055271,149.08,149.06,18.70964886]
[1751946883305,7.55074476,149.07,149.06,18.70964886]
[1751946884918,0.03,149.09,149.06,21.61480046]
[1751946885106,7.55012013,149.08,149.06,18.70964886]
[1751946885275,26.03,149.09,149.06,18.70964886]
[1751946885479,7.55049354,149.08,149.06,18.70964886]
[1751946885703,26.03,149.09,149.06,18.70964886]
[1751946885905,7.55039585,149.08,149.06,18.70964886]
[1751946886107,7.55081557,149.07,149.06,18.70964886]
[1751946886314,7.55060374,149.07,149.06,18.70964886]
[1751946887196,26.03,149.09,149.06,18.70964886]
[1751946887397,7.55016591,149.08,149.06,18.70964886]
[1751946887583,26.03,149.09,149.06,18.70964886]
[1751946887785,7.55016591,149.08,149.06,18.70964886]
[1751946887984,26.03,149.09,149.06,18.70964886]
[1751946888187,7.55000491,149.08,149.06,18.70964886]
[1751946888382,26.03,149.09,149.06,18.70964886]
[1751946888583,7.5498463,149.08,149.07,22.02964886]
[1751946889307,7.5498463,149.08,149.07,3.38]
[1751946892003,7.5498463,149.08,149.06,0.06]
[1751946892203,7.5498463,149.07,149.06,0.06]
[1751946902422,7.54904545,149.07,149.06,0.06]
[1751946904212,26.0,149.08,149.06,18.70964886]
[1751946904520,28.9351516,149.09,149.06,18.70964886]
[1751946905324,28.9351516,149.09,149.06,0.06]
[1751946905528,2.9051516,149.08,149.06,0.06]
[1751946907324,36.45405094,149.07,149.06,0.06]
[1751946907933,33.54889934,149.07,149.06,0.06]
[1751946908122,36.45405094,149.07,149.06,0.06]
[1751946910031,10.45405094,149.07,149.06,0.06]
[1751946915531,10.48405094,149.07,149.06,0.06]
[1751946922321,17.1923088,149.07,149.06,0.06]
[1751946923326,17.33447037,149.07,149.06,0.06]
[1751946924332,17.33447037,149.07,148.98,86.87]
[1751946924536,2.9051516,148.99,148.98,105.51964886]
[1751946925432,2.9051516,149.0,148.98,105.51964886]
[1751946927444,28.9051516,149.03,148.98,105.51964886]
[1751946932144,2.9051516,148.99,148.96,86.87]
[1751946932323,2.9051516,148.98,148.96,90.25]
[1751946932527,2.9051516,148.98,148.96,86.87]
[1751946935745,2.9051516,148.97,148.96,105.51964886]
[1751946936050,2.9051516,148.97,148.96,86.87]
[1751946937632,2.9051516,148.97,148.93,105.51964886]
[1751946937833,2.9051516,148.95,148.93,105.51964886]
[1751946938133,2.9051516,148.94,148.93,86.87]
[1751946938348,2.9051516,148.94,148.93,3.38]
[1751946939160,2.9051516,148.94,148.92,86.97]
[1751946939360,2.9051516,148.93,148.92,90.35]
[1751946939736,2.9051516,148.93,148.92,3.48]
[1751946940152,2.9051516,148.93,148.92,0.1]
[1751946940653,2.9051516,148.93,148.92,3.48]
[1751946942956,2.9051516,148.93,148.92,0.1]
[1751946943141,28.9051516,148.93,148.92,0.1]
[1751946947666,29.04731317,148.93,148.92,0.1]
[1751946949155,35.76187705,148.93,148.92,0.1]
[1751946950162,39.14187705,148.93,148.92,0.1]
[1751946950955,0.14216157,148.92,148.91,0.06]
[1751946951149,9.76232794,148.92,148.91,0.06]
[1751946951457,9.76232794,148.92,148.9,0.06]
[1751946951653,3.04731317,148.91,148.9,0.06]
[1751946953365,35.76277888,148.91,148.9,0.06]
[1751946955663,3.04731317,148.91,148.9,0.06]
[1751946959550,28.9051516,148.91,148.9,0.06]
[1751946959757,2.9051516,148.91,148.9,0.06]
[1751946959963,28.9051516,148.91,148.9,0.06]
[1751946961044,2.9051516,148.91,148.9,0.06]
[1751946961975,28.9051516,148.91,148.9,0.06]
[1751946969357,11.62656157,148.94,148.9,0.06]
[1751946969358,8.22291665,148.94,148.9,0.06]
[1751946969650,28.9051516,148.91,148.9,0.06]
[1751946982787,28.9351516,148.91,148.9,0.06]
[1751947000674,0.03,148.91,148.9,0.06]
[1751947001889,2.9351516,148.91,148.9,0.06]
[1751947003794,0.03,148.91,148.9,0.06]
[1751947022318,0.03,148.91,148.9,0.12716]
[1751947031548,2.9351516,148.91,148.9,0.12716]
[1751947031708,28.9351516,148.91,148.9,0.12716]
[1751947041036,35.65061731,148.91,148.9,0.12716]
[1751947041944,35.79277888,148.91,148.9,0.12716]
[1751947045446,55.50568528,148.91,148.9,0.12716]
[1751947048643,43.88507888,148.91,148.9,0.12716]
[1751947050748,0.14216157,148.9,148.88,0.06]
[1751947050946,75.532188,148.91,148.88,0.06]
[1751947050947,44.04791957,148.89,148.88,0.06]
[1751947052737,50.76428735,148.89,148.88,0.06]
[1751947053154,56.26760562,148.89,148.88,0.06]
[1751947053831,50.76428735,148.89,148.88,0.06]
[1751947055755,39.14368095,148.89,148.88,0.06]
[1751947057158,0.03,148.91,148.89,18.64964886]
[1751947057356,0.03,148.91,148.9,21.55480046]
[1751947058757,0.03,148.91,148.9,28.27071718]
[1751947059552,0.03,148.91,148.9,21.55480046]
[1751947060658,0.03,148.91,148.89,2.9051516]
[1751947060855,0.03,148.91,148.89,21.55480046]
[1751947061161,0.03,148.91,148.9,2.9051516]
[1751947062861,0.03,148.91,148.89,21.55480046]
[1751947063249,0.03,148.91,148.89,108.42480046]
[1751947065554,26.0,148.9,148.89,86.87]
[1751947066067,2.9051516,148.9,148.88,0.06]
[1751947068372,28.9051516,148.9,148.88,0.06]
[1751947078275,26.0,148.9,148.88,0.06]
[1751947078452,28.9051516,148.9,148.88,0.06]
[1751947081166,2.9051516,148.9,148.88,0.06]
[1751947084182,28.9051516,148.9,148.88,0.06]
[1751947087759,26.0,148.9,148.88,0.06]
[1751947090984,28.9051516,148.9,148.88,0.06]
[1751947092081,28.9351516,148.9,148.88,0.06]
[1751947096488,2.9351516,148.9,148.88,0.06]
[1751947099891,28.9351516,148.9,148.88,0.06]
[1751947102585,26.0,148.89,148.88,0.06]
[1751947105907,28.9351516,148.9,148.88,0.06]
[1751947114505,26.03,148.9,148.88,0.06]
[1751947114807,28.9351516,148.9,148.88,0.06]
[1751947121406,2.9351516,148.9,148.88,0.06]
[1751947121608,0.03,148.9,148.88,0.06]
[1751947122387,0.03,148.9,148.88,86.93]
[1751947127817,0.03,148.9,148.89,3.38]
[1751947128216,7.59488182,148.9,148.89,3.38]
[1751947128620,7.59488182,148.9,148.88,90.31]
[1751947128802,0.03,148.9,148.88,90.31]
[1751947130713,0.03,148.9,148.88,93.2151516]
[1751947131017,0.03,148.9,148.88,90.31]
[1751947131317,26.03,148.9,148.88,90.31]
[1751947132830,26.0,148.89,148.88,90.31]
[1751947133322,33.5649955,148.89,148.88,86.93]
[1751947134110,33.5649955,148.89,148.88,0.06]
[1751947134918,36.4701471,148.89,148.88,0.06]
[1751947135214,43.18651488,148.89,148.88,0.06]
[1751947136709,43.32867645,148.89,148.88,0.06]
[1751947136916,54.94928285,148.89,148.88,0.06]
[1751947138113,58.32928285,148.89,148.88,0.06]
[1751947139424,50.76428735,148.89,148.88,0.06]
[1751947155328,32.42731317,148.89,148.88,0.06]
[1751947155531,2.9051516,148.89,148.88,0.06]
[1751947156135,6.3151516,148.9,148.88,0.06]
[1751947156332,26.0,148.89,148.88,0.06]
[1751947156511,6.3151516,148.9,148.88,0.06]
[1751947157011,28.9051516,148.89,148.88,0.06]
[1751947159312,26.0,148.89,148.88,0.06]
[1751947161146,28.9351516,148.9,148.88,0.06]
[1751947166645,26.03,148.9,148.88,0.06]
[1751947166837,28.9351516,148.9,148.88,0.06]
[1751947178264,28.9051516,148.89,148.88,0.06]
[1751947178967,2.9051516,148.89,148.88,0.06]
[1751947179457,28.9051516,148.89,148.88,0.06]
[1751947179764,26.0,148.89,148.88,0.06]
[1751947179935,28.9351516,148.9,148.88,0.06]
[1751947181950,26.0,148.89,148.88,0.06]
[1751947186538,2.9051516,148.89,148.88,0.06]
[1751947187046,28.9051516,148.89,148.88,0.06]
[1751947190636,2.9051516,148.89,148.88,0.06]
[1751947193332,35.62151938,148.89,148.88,0.06]
[1751947202954,2.9051516,148.89,148.88,0.06]
[1751947203685,26.0,148.89,148.88,0.06]
[1751947203983,2.9051516,148.89,148.88,0.06]
[1751947205782,9.62151938,148.89,148.88,0.06]
[1751947209570,9.76368095,148.89,148.88,0.06]
[1751947209783,21.38428735,148.89,148.88,0.06]
[1751947210294,30.81841862,148.89,148.88,0.06]
[1751947210497,26.0,148.88,148.87,0.1]
[1751947210668,28.9051516,148.88,148.87,0.1]
[1751947210981,29.04731317,148.88,148.87,0.1]
[1751947211691,35.76413208,148.88,148.87,0.1]
[1751947213487,0.14216157,148.87,148.86,0.06]
[1751947213687,6.42731317,148.87,148.86,0.06]
[1751947215330,13.14458327,148.87,148.86,0.06]
[1751947217794,10.0972701,148.87,148.86,0.06]
[1751947218002,13.14458327,148.87,148.86,0.06]
[1751947218895,16.58121378,148.87,148.86,0.06]
[1751947221690,26.14216157,148.85,148.84,0.1]
[1751947221890,35.76548582,148.85,148.84,0.1]
[1751947224388,53.79949222,148.85,148.83,0.1]
[1751947224594,18.04791957,148.84,148.81,0.1]
[1751947224819,26.0,148.81,148.8,0.06]
[1751947225022,3.04731317,148.81,148.8,0.06]
[1751947225384,8.52586601,148.81,148.8,0.06]
[1751947225795,11.90586601,148.81,148.8,0.06]
[1751947226293,0.14216157,148.8,148.75,87.4]
[1751947226481,2.9051516,148.76,148.75,0.1]
[1751947228288,21.39015673,148.76,148.75,0.1]
[1751947228914,15.99501259,148.76,148.75,0.1]
[1751947231588,11.28754409,148.76,148.75,0.1]
[1751947231802,11.42970566,148.76,148.75,0.1]
[1751947232585,4.7074685,148.76,148.75,0.1]
[1751947232784,11.42970566,148.76,148.75,0.1]
[1751947235519,15.99501259,148.76,148.75,0.1]
[1751947236527,11.42970566,148.76,148.75,0.1]
[1751947236914,3.38,148.78,148.75,0.1]
[1751947236915,0.14216157,148.78,148.75,0.1]
[1751947237101,4.56530693,148.76,148.75,0.1]
[1751947237600,30.56530693,148.76,148.75,0.1]
[1751947239121,11.42970566,148.76,148.75,0.1]
[1751947239827,30.56530693,148.76,148.75,0.1]
[1751947241212,4.56530693,148.76,148.75,0.1]
[1751947241630,30.56530693,148.76,148.75,0.1]
[1751947242029,30.56530693,148.77,148.75,0.1]
[1751947242234,26.0,148.76,148.75,0.1]
[1751947245652,30.56530693,148.76,148.75,0.1]
[1751947249633,26.0,148.78,148.75,4.66530693]
[1751947251040,26.0,148.78,148.75,91.96530693]
[1751947256147,26.0,148.78,148.75,95.36530693]
[1751947257221,26.0,148.78,148.75,90.8]
[1751947257426,30.56530693,148.78,148.75,90.8]
[1751947263553,26.0,148.77,148.75,90.8]
[1751947268743,30.56530693,148.77,148.75,90.8]
[1751947269257,26.0,148.77,148.75,90.8]
[1751947270358,30.56530693,148.77,148.75,90.8]
[1751947271266,30.56530693,148.76,148.75,87.4]
[1751947273372,30.56530693,148.76,148.75,0.1]
[1751947275254,26.0,148.76,148.75,0.1]
[1751947275553,30.56530693,148.76,148.75,0.1]
[1751947278948,28.91989101,148.76,148.75,0.1]
[1751947280472,2.91989101,148.76,148.75,0.1]
[1751947285065,28.91989101,148.76,148.75,0.1]
[1751947292780,2.91989101,148.76,148.75,0.1]
[1751947300184,9.64212817,148.76,148.75,0.1]
[1751947304062,26.0,148.76,148.75,0.1]
[1751947305170,28.91989101,148.77,148.75,0.1]
[1751947306075,2.91989101,148.76,148.75,0.1]
[1751947315975,28.91989101,148.76,148.75,0.1]
[1751947318689,26.0,148.76,148.75,0.1]
[1751947318893,28.91989101,148.76,148.75,0.1]
[1751947320815,35.64212817,148.76,148.75,0.1]
[1751947322110,52.36465378,148.76,148.75,0.1]
[1751947322322,61.8194654,148.76,148.75,0.1]
[1751947324016,47.22001035,148.76,148.75,0.1]
[1751947324191,61.8194654,148.76,148.75,0.1]
[1751947325109,67.18323902,148.76,148.75,0.1]
[1751947325308,55.50367498,148.76,148.75,0.1]
[1751947326513,67.18323902,148.76,148.75,0.1]
[1751947327520,57.7284274,148.76,148.75,0.1]
[1751947330195,57.7284274,148.76,148.73,0.1]
[1751947330396,2.91989101,148.74,148.73,0.1]
[1751947330640,6.29989101,148.74,148.73,0.1]
[1751947331495,13.02303206,148.74,148.73,0.1]
[1751947345115,26.0,148.72,148.71,0.1]
[1751947345314,28.91989101,148.72,148.71,0.1]
[1751947347327,35.64393619,148.72,148.71,0.1]
[1751947378465,35.78609776,148.72,148.71,0.1]
[1751947378674,37.43889776,148.72,148.71,0.1]
[1751947379274,46.89948486,148.72,148.71,0.1]
[1751947379981,57.8453145,148.72,148.71,0.1]
[1751947385086,2.91989101,148.67,148.65,87.3]
[1751947385288,26.0,148.66,148.65,87.3]
[1751947386191,2.91989101,148.66,148.65,87.3]
[1751947386883,2.91989101,148.67,148.65,87.3]
[1751947387191,28.91989101,148.66,148.65,87.3]
[1751947388086,9.64665005,148.66,148.65,87.3]
[1751947388390,17.19710619,148.66,148.65,87.3]
[1751947388577,26.0,148.63,148.62,88.8959]
[1751947388972,26.0,148.62,148.6,0.1]
[1751947389168,32.72811216,148.64,148.6,0.1]
[1751947389363,2.91989101,148.62,148.6,0.1]
[1751947389578,7.54039679,148.62,148.6,90.31989101]
[1751947389789,2.91989101,148.67,148.61,21.56953987]
[1751947390072,7.5418754,148.66,148.63,2.91989101]
[1751947390275,2.91989101,148.69,148.65,2.91989101]
[1751947390463,7.54082001,148.68,148.66,2.91989101]
[1751947390680,6.24042426,148.71,148.66,2.91989101]
[1751947390887,7.54360641,148.7,148.66,2.91989101]
[1751947391070,7.54360641,148.7,148.68,2.91989101]
[1751947391272,12.8905871,148.73,148.68,2.91989101]
[1751947391273,3.43,148.73,148.68,2.91989101]
[1751947391487,10.46522127,148.72,148.67,2.91989101]
[1751947391708,26.0,148.69,148.67,2.91989101]
[1751947392807,26.0,148.71,148.67,4.56507541]
[1751947394174,30.56507541,148.71,148.67,4.56507541]
[1751947396197,30.56507541,148.71,148.67,91.86507541]
[1751947396497,26.0,148.72,148.67,91.86507541]
[1751947396696,4.56507541,148.71,148.67,91.86507541]
[1751947398406,30.56507541,148.71,148.67,91.86507541]
[1751947398606,26.0,148.71,148.69,4.56507541]